bitfinex/quotes_BTCUSD_20240617
["timestamp","ask_amount","ask_price","bid_price","bid_amount"]
[1718584063173,0.00855,66705.0,66704.0,2.23423746]
[1718584063398,0.00855,66705.0,66704.0,2.3446315]
[1718584063645,0.00855,66705.0,66704.0,2.20623746]
[1718584063819,0.00855,66705.0,66704.0,2.22023746]
[1718584064019,0.00855,66705.0,66704.0,2.27023746]
[1718584064225,0.00855,66705.0,66704.0,2.12773746]
[1718584064454,0.00855,66705.0,66704.0,2.17773746]
[1718584064652,0.00855,66705.0,66704.0,2.28423746]
[1718584065452,0.00855,66705.0,66704.0,2.28423711]
[1718584066261,0.00855,66705.0,66704.0,2.39463017]
[1718584066459,0.00855,66705.0,66704.0,2.40863017]
[1718584066896,0.00855,66705.0,66704.0,2.39463017]
[1718584067101,0.00855,66705.0,66704.0,2.26613017]
[1718584067278,0.00855,66705.0,66704.0,2.31613017]
[1718584068161,0.00855,66705.0,66704.0,2.3341796]
[1718584069762,0.00855,66705.0,66704.0,2.33417826]
[1718584070125,0.00855,66705.0,66704.0,2.09758891]
[1718584070333,0.00855,66705.0,66704.0,2.14758891]
[1718584070768,0.00855,66705.0,66704.0,2.09758891]
[1718584070970,0.00855,66705.0,66704.0,2.14758891]
[1718584072168,0.00855,66705.0,66704.0,2.11755891]
[1718584072379,0.14835,66705.0,66704.0,1.92616922]
[1718584072587,0.14835,66705.0,66704.0,1.32650522]
[1718584073060,0.14835,66705.0,66704.0,0.87675722]
[1718584073291,0.14835,66705.0,66704.0,1.02667322]
[1718584073557,0.14835,66705.0,66704.0,1.09229411]
[1718584073777,0.15585,66705.0,66704.0,1.12029411]
[1718584073993,0.15585,66705.0,66704.0,0.97037811]
[1718584074215,0.15585,66705.0,66704.0,0.95637811]
[1718584074461,0.15585,66705.0,66704.0,0.94237811]
[1718584074713,0.15585,66705.0,66704.0,0.95637811]
[1718584074929,0.14835,66705.0,66704.0,1.40612611]
[1718584075153,0.14835,66705.0,66704.0,1.71995811]
[1718584076474,0.14835,66705.0,66704.0,1.70595811]
[1718584076694,0.14835,66705.0,66704.0,1.71995811]
[1718584077399,0.14835,66705.0,66704.0,2.02979011]
[1718584077400,0.00855,66705.0,66704.0,2.02979011]
[1718584077626,0.00855,66705.0,66704.0,2.2163971]
[1718584080359,0.00855,66705.0,66704.0,2.52741108]
[1718584080811,0.00855,66705.0,66704.0,2.51741108]
[1718584081039,0.00855,66705.0,66704.0,1.50624476]
[1718584081454,0.00855,66705.0,66704.0,1.80607676]
[1718584081659,0.00855,66705.0,66704.0,2.10590876]
[1718584081892,0.00855,66705.0,66704.0,1.49506278]
[1718584082117,0.00855,66705.0,66704.0,1.79489478]
[1718584082357,0.00855,66705.0,66704.0,2.25800998]
[1718584082925,0.00855,66705.0,66704.0,1.95817798]
[1718584083769,0.00855,66705.0,66704.0,2.25800998]
[1718584086249,0.00855,66705.0,66704.0,1.65834598]
[1718584086763,0.00855,66705.0,66704.0,1.95817798]
[1718584087020,0.00855,66705.0,66704.0,2.25800998]
[1718584087235,0.00855,66705.0,66704.0,2.26800998]
[1718584087479,0.00855,66705.0,66704.0,2.25800998]
[1718584090727,0.00855,66705.0,66704.0,1.95817798]
[1718584092875,0.00855,66705.0,66704.0,2.25800998]
[1718584093213,0.00105,66705.0,66704.0,2.25800998]
[1718584093426,0.00105,66705.0,66704.0,1.95817798]
[1718584094288,0.00105,66705.0,66704.0,2.25800998]
[1718584094693,0.00105,66705.0,66704.0,2.56784198]
[1718584094896,0.00105,66705.0,66704.0,2.40050998]
[1718584095883,0.00105,66705.0,66704.0,2.25800998]
[1718584096095,0.00105,66705.0,66704.0,2.61784198]
[1718584096314,0.00105,66705.0,66704.0,2.75564198]
[1718584096547,0.00105,66705.0,66704.0,2.80032616]
[1718584096993,0.00105,66705.0,66704.0,2.75564198]
[1718584097226,0.00105,66705.0,66704.0,2.74564198]
[1718584097462,0.00105,66705.0,66704.0,2.79047377]
[1718584097745,0.00105,66705.0,66704.0,2.30284177]
[1718584097970,0.00105,66705.0,66704.0,2.60267377]
[1718584098193,0.00105,66705.0,66704.0,2.63486826]
[1718584098648,0.00105,66705.0,66704.0,2.56784198]
[1718584098872,0.00105,66705.0,66704.0,2.63512543]
[1718584099098,0.00105,66705.0,66704.0,2.62512543]
[1718584099551,0.00105,66705.0,66704.0,2.02546143]
[1718584099789,0.00105,66705.0,66704.0,2.32529343]
[1718584100481,0.00105,66705.0,66704.0,2.3253039]
[1718584101415,0.00105,66705.0,66704.0,2.6351359]
[1718584101629,0.00105,66705.0,66704.0,2.3353039]
[1718584102559,0.00105,66705.0,66704.0,2.56783913]
[1718584103447,0.00105,66705.0,66704.0,2.55784058]
[1718584103958,0.00105,66705.0,66704.0,2.56784058]
[1718584106201,0.00105,66705.0,66704.0,2.80794058]
[1718584106382,0.00105,66705.0,66704.0,3.08453494]
[1718584106586,0.00105,66705.0,66704.0,3.36639363]
[1718584106783,0.00105,66705.0,66704.0,3.45889363]
[1718584107351,0.00105,66705.0,66704.0,3.80889363]
[1718584107352,1e-08,66705.0,66704.0,3.80889363]
[1718584107562,1e-08,66705.0,66704.0,4.13875563]
[1718584107737,1e-08,66705.0,66704.0,3.82492363]
[1718584108155,1e-08,66705.0,66704.0,3.81092363]
[1718584108372,1e-08,66705.0,66704.0,3.87264848]
[1718584109253,1e-08,66705.0,66704.0,4.18648048]
[1718584109635,1e-08,66705.0,66704.0,4.15848048]
[1718584110081,1e-08,66705.0,66704.0,4.18648048]
[1718584110323,1e-08,66705.0,66704.0,4.26264048]
[1718584110538,1e-08,66705.0,66704.0,4.27664048]
[1718584111189,1e-08,66705.0,66704.0,4.27603651]
[1718584111410,0.00855,66717.0,66716.0,1.704661]
[1718584111628,0.00855,66717.0,66716.0,3.0934718]
[1718584111847,0.00855,66717.0,66716.0,3.14119665]
[1718584112259,0.00855,66717.0,66716.0,3.05162188]
[1718584112460,0.00855,66717.0,66716.0,2.95912188]
[1718584112671,0.00855,66717.0,66716.0,3.1112012]
[1718584112900,0.00855,66717.0,66716.0,3.1252012]
[1718584113099,0.00855,66717.0,66716.0,3.1392012]
[1718584113309,0.00855,66717.0,66716.0,3.20634707]
[1718584113549,0.00855,66717.0,66716.0,3.22934707]
[1718584113740,0.00855,66717.0,66716.0,3.1622012]
[1718584113943,0.1205,66731.0,66730.0,0.759287]
[1718584114168,0.1205,66731.0,66730.0,0.98033479]
[1718584115007,0.1205,66731.0,66730.0,1.28004979]
[1718584115247,0.00855,66737.0,66736.0,0.505492]
[1718584115507,0.00855,66737.0,66736.0,1.03081699]
[1718584115719,0.07475,66737.0,66736.0,0.73112899]
[1718584117038,0.15665,66737.0,66736.0,0.74412899]
[1718584117428,0.15665,66737.0,66736.0,0.75812899]
[1718584119011,0.00855,66737.0,66736.0,1.35750499]
[1718584119226,0.00855,66737.0,66736.0,2.20378499]
[1718584119445,0.00855,66737.0,66736.0,2.26595934]
[1718584119691,0.00855,66737.0,66736.0,2.39030508]
[1718584119934,0.00855,66737.0,66736.0,2.37730508]
[1718584120149,0.00855,66737.0,66736.0,2.36330508]
[1718584120563,0.00855,66737.0,66736.0,2.37730508]
[1718584120919,0.00855,66737.0,66736.0,2.39130508]
[1718584121381,0.00855,66737.0,66736.0,1.78037134]
[1718584121832,0.00855,66737.0,66736.0,2.08005934]
[1718584122285,0.00855,66737.0,66736.0,2.06605934]
[1718584122772,0.00855,66737.0,66736.0,2.08005934]
[1718584125251,0.00855,66737.0,66736.0,1.77037134]
[1718584125472,0.00855,66737.0,66736.0,1.70819699]
[1718584125917,0.00855,66737.0,66736.0,1.72591437]
[1718584127000,0.00855,66737.0,66736.0,1.02598917]
[1718584127214,0.00855,66737.0,66736.0,1.32567717]
[1718584128409,0.00855,66737.0,66736.0,0.85842779]
[1718584128819,0.00855,66737.0,66736.0,1.00827179]
[1718584129049,0.00855,66737.0,66736.0,1.60764779]
[1718584129257,0.00855,66737.0,66736.0,2.15942358]
[1718584129469,0.00855,66737.0,66736.0,2.54431158]
[1718584129682,0.00855,66737.0,66736.0,2.24462358]
[1718584129905,0.00855,66737.0,66736.0,2.23462358]
[1718584130111,0.00855,66737.0,66736.0,2.42113839]
[1718584130317,0.00855,66737.0,66736.0,2.3067935]
[1718584130513,0.00855,66737.0,66736.0,2.4311356]
[1718584130712,0.00855,66737.0,66736.0,2.2967935]
[1718584131051,0.00855,66737.0,66736.0,2.42113588]
[1718584131251,0.00855,66737.0,66736.0,2.2967935]
[1718584131466,0.00855,66737.0,66736.0,2.42113602]
[1718584132526,0.00855,66737.0,66736.0,2.29593602]
[1718584133390,0.00855,66737.0,66736.0,1.64656002]
[1718584133602,0.00855,66737.0,66736.0,1.2225295]
[1718584133821,0.00855,66737.0,66736.0,1.16035958]
[1718584134043,0.00855,66737.0,66736.0,1.01051558]
[1718584134254,0.00855,66737.0,66736.0,1.07269125]
[1718584134462,0.00855,66737.0,66736.0,1.07269107]
[1718584134670,0.00855,66737.0,66736.0,1.52222307]
[1718584134875,0.00855,66737.0,66736.0,1.07269107]
[1718584135123,0.00855,66737.0,66736.0,1.16035958]
[1718584135332,0.00855,66737.0,66736.0,1.82191143]
[1718584135539,0.00855,66737.0,66736.0,2.24594521]
[1718584136170,0.00855,66737.0,66736.0,2.24594148]
[1718584136377,0.00855,66737.0,66736.0,2.55680179]
[1718584136588,0.00855,66737.0,66736.0,2.24594148]
[1718584136801,0.00855,66737.0,66736.0,2.55680242]
[1718584137180,0.00855,66737.0,66736.0,2.24594148]
[1718584137411,0.00855,66737.0,66736.0,2.5568027]
[1718584137832,0.00855,66737.0,66736.0,2.24594148]
[1718584138365,0.00855,66737.0,66736.0,2.55680443]
[1718584139940,0.00855,66737.0,66736.0,2.56680443]
[1718584140158,0.00855,66737.0,66736.0,2.64620443]
[1718584140361,0.00855,66737.0,66736.0,2.69820443]
[1718584140591,0.00855,66737.0,66736.0,2.75820443]
[1718584141202,0.00855,66737.0,66736.0,2.74820443]
[1718584142446,0.00855,66737.0,66736.0,2.75820443]
[1718584143496,0.00855,66737.0,66736.0,2.74820443]
[1718584144667,0.00855,66737.0,66736.0,2.75820443]
[1718584144875,0.00855,66737.0,66736.0,2.68603231]
[1718584145084,0.00855,66737.0,66736.0,2.74820283]
[1718584145683,0.00855,66737.0,66736.0,2.75820283]
[1718584147377,0.00855,66737.0,66736.0,2.7582025]
[1718584149942,0.00855,66737.0,66736.0,2.7507025]
[1718584152524,0.00855,66737.0,66736.0,3.0503905]
[1718584153550,0.00855,66737.0,66736.0,3.1503905]
[1718584154509,0.00855,66737.0,66736.0,3.28884432]
[1718584154692,0.00855,66737.0,66736.0,3.38884432]
[1718584154894,0.00855,66737.0,66736.0,3.52336324]
[1718584155106,0.00855,66737.0,66736.0,3.6025803]
[1718584155375,0.00855,66737.0,66736.0,3.62501077]
[1718584155749,0.00855,66737.0,66736.0,3.64701077]
[1718584156195,0.00855,66737.0,66736.0,3.67501077]
[1718584156337,0.00855,66737.0,66736.0,3.66101077]
[1718584156740,0.00855,66737.0,66736.0,3.67501077]
[1718584157342,0.00855,66737.0,66736.0,3.585436]
[1718584157546,0.00855,66737.0,66736.0,3.571436]
[1718584157892,0.00855,66737.0,66736.0,3.58516978]
[1718584159323,0.00855,66737.0,66736.0,3.69704693]
[1718584159556,0.00855,66737.0,66736.0,3.23759548]
[1718584159748,0.00855,66737.0,66736.0,3.69702363]
[1718584160123,0.00855,66737.0,66736.0,3.58513334]
[1718584160320,0.00855,66737.0,66736.0,3.58459785]
[1718584160573,0.00855,66737.0,66736.0,3.69648814]
[1718584161205,0.00855,66737.0,66736.0,3.59648814]
[1718584161404,0.00855,66737.0,66736.0,3.69648814]
[1718584161610,0.00855,66737.0,66736.0,3.69645435]
[1718584162411,0.00855,66737.0,66736.0,3.58456406]
[1718584167048,0.00855,66737.0,66736.0,3.64450606]
[1718584171283,0.00855,66737.0,66736.0,3.94419406]
[1718584172083,0.00855,66737.0,66736.0,3.94408856]
[1718584173195,0.00855,66737.0,66736.0,3.64440056]
[1718584173418,0.00855,66737.0,66736.0,3.69440056]
[1718584173821,0.00855,66737.0,66736.0,3.99408856]
[1718584174723,0.00855,66737.0,66736.0,3.63223759]
[1718584174949,0.00855,66737.0,66736.0,3.64440045]
[1718584175158,0.00855,66737.0,66736.0,3.69440045]
[1718584175758,0.00855,66737.0,66736.0,4.16062101]
[1718584176227,0.00855,66737.0,66736.0,3.69440045]
[1718584176438,0.00855,66737.0,66736.0,4.16062174]
[1718584176664,0.00855,66737.0,66736.0,3.69440045]
[1718584176879,0.00855,66737.0,66736.0,4.16062268]
[1718584177085,0.00855,66737.0,66736.0,3.87588878]
[1718584177237,0.00855,66737.0,66736.0,4.16082944]
[1718584177796,0.00855,66737.0,66736.0,3.69460721]
[1718584178263,0.00855,66737.0,66736.0,4.16083146]
[1718584178854,0.00855,66737.0,66736.0,4.16176646]
[1718584180268,0.00855,66737.0,66736.0,4.06176646]
[1718584181607,0.00855,66737.0,66736.0,4.16176646]
[1718584182244,0.00855,66737.0,66736.0,4.16131832]
[1718584182466,0.00855,66737.0,66736.0,4.06131832]
[1718584182723,0.00855,66737.0,66736.0,4.01131832]
[1718584182934,0.00855,66737.0,66736.0,4.06131832]
[1718584184820,0.00855,66737.0,66736.0,3.10400607]
[1718584185033,0.00855,66737.0,66736.0,3.15400607]
[1718584191022,0.00855,66737.0,66736.0,3.15400864]
[1718584192148,0.00855,66737.0,66736.0,3.15400971]
[1718584195829,0.00855,66737.0,66736.0,3.15636512]
[1718584200532,0.00855,66737.0,66736.0,3.55605312]
[1718584200741,0.00855,66737.0,66736.0,4.16409081]
[1718584201090,0.00855,66737.0,66736.0,4.11409081]
[1718584201294,0.00855,66737.0,66736.0,4.16409081]
[1718584204172,0.00855,66737.0,66736.0,4.14858118]
[1718584204394,0.00855,66737.0,66736.0,3.89889318]
[1718584204606,0.00855,66737.0,66736.0,3.76440281]
[1718584205044,0.00855,66737.0,66736.0,3.29816512]
[1718584205246,0.00855,66737.0,66736.0,3.09636512]
[1718584205525,0.00855,66737.0,66736.0,3.01222466]
[1718584205733,0.00855,66737.0,66736.0,3.00427733]
[1718584206141,0.00855,66737.0,66736.0,2.99386237]
[1718584206353,0.00855,66737.0,66736.0,3.00386237]
[1718584206559,0.00855,66737.0,66736.0,2.95386237]
[1718584206783,0.00855,66737.0,66736.0,3.15702662]
[1718584208449,0.00855,66737.0,66736.0,3.1470615]
[1718584209103,0.00855,66737.0,66736.0,3.1570615]
[1718584209314,0.00855,66737.0,66736.0,3.2349615]
[1718584209524,0.00855,66737.0,66736.0,3.70120153]
[1718584210150,0.00855,66737.0,66736.0,3.2349615]
[1718584210353,0.00855,66737.0,66736.0,3.86519873]
[1718584210595,0.00855,66737.0,66736.0,4.16488673]
[1718584210774,0.00855,66737.0,66736.0,4.16958673]
[1718584211158,0.00105,66737.0,66736.0,4.16958673]
[1718584211373,0.00105,66737.0,66736.0,3.76989873]
[1718584211776,0.00105,66737.0,66736.0,4.06958673]
[1718584212214,0.00105,66737.0,66736.0,3.71989873]
[1718584212504,0.00105,66737.0,66736.0,3.76989873]
[1718584212714,0.00105,66737.0,66736.0,4.00433846]
[1718584212895,0.00105,66737.0,66736.0,4.25974673]
[1718584213637,0.00105,66737.0,66736.0,4.20974673]
[1718584213875,0.00105,66737.0,66736.0,4.25974673]
[1718584214084,0.00105,66737.0,66736.0,4.20974673]
[1718584214305,0.00105,66737.0,66736.0,4.25974673]
[1718584216303,0.00105,66737.0,66736.0,4.55943473]
[1718584216517,0.00105,66737.0,66736.0,4.25974673]
[1718584217483,0.00105,66737.0,66736.0,4.2587854]
[1718584218975,0.00105,66737.0,66736.0,4.5584734]
[1718584219647,1e-08,66737.0,66736.0,4.2587854]
[1718584219868,1e-08,66737.0,66736.0,4.5584734]
[1718584220136,0.04491946,66771.0,66736.0,4.5584734]
[1718584220137,0.08459389,66772.0,66771.0,0.0475969]
[1718584220341,0.08459389,66772.0,66771.0,1.24804069]
[1718584220342,0.06885,66772.0,66771.0,1.24804069]
[1718584220555,0.14875,66772.0,66771.0,1.84710269]
[1718584220807,0.14875,66772.0,66771.0,2.12348047]
[1718584221251,0.14875,66772.0,66771.0,1.82394947]
[1718584221468,0.00855,66772.0,66771.0,2.23748047]
[1718584221705,0.07495,66772.0,66771.0,2.23748047]
[1718584222145,0.07495,66772.0,66771.0,2.27048047]
[1718584222558,0.07495,66772.0,66771.0,2.26048047]
[1718584222770,0.07495,66772.0,66771.0,2.24648047]
[1718584222975,0.07495,66772.0,66771.0,2.26048047]
[1718584223382,0.07495,66772.0,66771.0,2.24648047]
[1718584224242,0.07495,66772.0,66771.0,2.26048047]
[1718584224466,0.07495,66772.0,66771.0,2.25648047]
[1718584224885,0.07495,66772.0,66771.0,2.28448047]
[1718584225100,0.07495,66772.0,66771.0,2.22448047]
[1718584225317,0.07495,66772.0,66771.0,2.26048047]
[1718584225318,0.00855,66772.0,66771.0,2.26048047]
[1718584225542,0.00855,66772.0,66771.0,2.27448047]
[1718584226390,0.00855,66772.0,66771.0,2.58401147]
[1718584226605,0.00855,66772.0,66771.0,2.73401147]
[1718584226833,0.00855,66772.0,66771.0,2.7525653]
[1718584227072,0.00855,66772.0,66771.0,2.4530343]
[1718584228401,0.00855,66772.0,66771.0,2.4830643]
[1718584228611,0.00855,66772.0,66771.0,2.7825953]
[1718584228818,0.00855,66772.0,66771.0,2.4830643]
[1718584229215,0.00855,66772.0,66771.0,2.4690643]
[1718584229397,0.00855,66772.0,66771.0,2.4830643]
[1718584229611,0.00855,66772.0,66771.0,2.5467643]
[1718584229792,0.00855,66772.0,66771.0,2.8462953]
[1718584230261,0.00855,66772.0,66771.0,2.5467643]
[1718584230467,0.00855,66772.0,66771.0,2.5327643]
[1718584230681,0.00855,66772.0,66771.0,2.4830643]
[1718584230955,0.08585,66772.0,66771.0,1.21538351]
[1718584231109,0.14745,66772.0,66771.0,1.13538351]
[1718584231335,0.14745,66772.0,66771.0,1.62415552]
[1718584231571,0.14745,66772.0,66771.0,1.77624331]
[1718584231776,0.14745,66772.0,66771.0,1.74824331]
[1718584231994,0.14745,66772.0,66771.0,1.77624331]
[1718584232190,0.14745,66772.0,66771.0,1.74621331]
[1718584232403,0.14745,66772.0,66771.0,1.71821331]
[1718584232608,0.14745,66772.0,66771.0,1.74121331]
[1718584232861,0.14745,66772.0,66771.0,1.75521331]
[1718584233327,0.14745,66772.0,66771.0,2.05474431]
[1718584233922,0.14745,66772.0,66771.0,2.06874431]
[1718584234249,0.14745,66772.0,66771.0,2.05330459]
[1718584234461,0.14745,66772.0,66771.0,2.06730459]
[1718584234677,0.14745,66772.0,66771.0,2.1915807]
[1718584234895,0.14745,66772.0,66771.0,2.2015807]
[1718584235112,0.14745,66772.0,66771.0,2.2055807]
[1718584235561,0.14745,66772.0,66771.0,2.1915807]
[1718584235908,0.14745,66772.0,66771.0,2.2055807]
[1718584236352,0.14745,66772.0,66771.0,2.2155807]
[1718584236551,0.14745,66772.0,66771.0,2.2055807]
[1718584236906,0.00855,66772.0,66771.0,2.2155807]
[1718584237086,0.00855,66772.0,66771.0,2.2055807]
[1718584237422,0.00855,66772.0,66771.0,2.1915807]
[1718584237781,0.00855,66772.0,66771.0,2.2055807]
[1718584238008,0.00855,66772.0,66771.0,2.1775807]
[1718584238211,0.00855,66772.0,66771.0,2.1635807]
[1718584238412,0.00855,66772.0,66771.0,2.1775807]
[1718584238620,0.00855,66772.0,66771.0,2.1915807]
[1718584239017,0.00855,66772.0,66771.0,2.2015807]
[1718584239995,0.00855,66772.0,66771.0,2.1915807]
[1718584242462,0.00855,66772.0,66771.0,2.2015807]
[1718584242637,0.00855,66772.0,66771.0,2.1915807]
[1718584243253,0.00855,66772.0,66771.0,2.19157683]
[1718584245786,0.00855,66772.0,66771.0,2.06730459]
[1718584246002,0.00855,66772.0,66771.0,2.19157656]
[1718584247905,0.00855,66772.0,66771.0,2.20157656]
[1718584248304,0.00855,66772.0,66771.0,2.19157656]
[1718584252317,0.00855,66772.0,66771.0,2.17757656]
[1718584254342,0.00855,66772.0,66771.0,2.19157656]
[1718584254789,0.00855,66772.0,66771.0,2.18757656]
[1718584255015,0.00855,66772.0,66771.0,2.20157656]
[1718584255444,0.00855,66772.0,66771.0,2.06730459]
[1718584255661,0.00855,66772.0,66771.0,2.19157706]
[1718584256564,0.00855,66772.0,66771.0,2.38027908]
[1718584256781,0.00855,66772.0,66771.0,2.39027908]
[1718584256996,0.00855,66772.0,66771.0,2.37627908]
[1718584257167,0.00855,66772.0,66771.0,2.40630908]
[1718584257427,0.00855,66772.0,66771.0,2.75584008]
[1718584257632,0.00855,66772.0,66771.0,2.98986468]
[1718584257855,0.00855,66772.0,66771.0,2.97586468]
[1718584258502,0.00855,66772.0,66771.0,2.95186468]
[1718584258720,0.00855,66772.0,66771.0,2.99377887]
[1718584258928,0.00855,66772.0,66771.0,2.97586468]
[1718584259350,0.00855,66772.0,66771.0,2.96586468]
[1718584259772,0.00855,66772.0,66771.0,2.97986468]
[1718584260339,0.00855,66772.0,66771.0,2.96586468]
[1718584260539,0.00855,66772.0,66771.0,2.98986468]
[1718584260734,0.00855,66772.0,66771.0,2.97986468]
[1718584262644,0.00855,66772.0,66771.0,2.61673368]
[1718584262887,0.14935,66772.0,66771.0,1.65915567]
[1718584263102,0.14935,66772.0,66771.0,1.48795875]
[1718584263304,0.14935,66772.0,66771.0,1.76957835]
[1718584265706,0.00855,66772.0,66771.0,2.06910935]
[1718584265927,0.00855,66772.0,66771.0,2.22119714]
[1718584266329,0.00855,66772.0,66771.0,1.98875358]
[1718584266587,0.00855,66772.0,66771.0,2.28828458]
[1718584267455,0.00855,66772.0,66771.0,2.45949944]
[1718584267894,0.00855,66772.0,66771.0,2.65259188]
[1718584268103,0.00855,66772.0,66771.0,2.71389188]
[1718584268719,0.00855,66772.0,66771.0,2.62444196]
[1718584268930,0.00855,66772.0,66771.0,2.71392155]
[1718584269352,0.00855,66772.0,66771.0,3.01378303]
[1718584269593,0.00855,66772.0,66771.0,2.9063921]
[1718584269807,0.00855,66772.0,66771.0,3.24544158]
[1718584270028,0.00855,66772.0,66771.0,3.2267938]
[1718584270503,0.00855,66772.0,66771.0,3.2767938]
[1718584270975,0.00855,66772.0,66771.0,3.37678944]
[1718584272099,0.00855,66772.0,66771.0,3.27678944]
[1718584272332,0.00855,66772.0,66771.0,3.21928944]
[1718584272549,0.00855,66772.0,66771.0,3.26928944]
[1718584272978,0.00855,66772.0,66771.0,3.46928944]
[1718584273644,0.00855,66772.0,66771.0,3.56928944]
[1718584273854,0.00855,66772.0,66771.0,3.41928944]
[1718584274074,0.00855,66772.0,66771.0,3.46928944]
[1718584275883,0.00818796,66772.0,66771.0,3.46928944]
[1718584276292,0.00818796,66772.0,66771.0,3.56928944]
[1718584278134,0.00818796,66772.0,66771.0,3.46928944]
[1718584278874,0.00818796,66772.0,66771.0,3.56928944]
[1718584279281,0.00818796,66772.0,66771.0,3.65944944]
[1718584279282,1e-08,66772.0,66771.0,3.65944944]
[1718584279486,0.0076383,66778.0,66777.0,1.74131526]
[1718584279710,0.0076383,66778.0,66777.0,3.04745924]
[1718584279929,0.0076383,66778.0,66777.0,3.17727682]
[1718584280282,0.0076383,66778.0,66777.0,3.2113046]
[1718584280523,0.0076383,66778.0,66777.0,3.46339239]
[1718584280745,0.0076383,66778.0,66777.0,3.52551232]
[1718584280965,0.0076383,66778.0,66777.0,3.39109577]
[1718584281403,0.0076383,66778.0,66777.0,3.69059977]
[1718584281888,0.0076383,66778.0,66777.0,3.40509577]
[1718584282094,0.0076383,66778.0,66777.0,3.70169539]
[1718584282301,0.0076383,66778.0,66777.0,3.71569539]
[1718584282508,0.0076383,66778.0,66777.0,3.72969539]
[1718584282935,0.0076383,66778.0,66777.0,4.61935939]
[1718584283146,0.00855,66784.0,66783.0,1.47553449]
[1718584283352,0.00855,66784.0,66783.0,3.23562475]
[1718584283596,0.00855,66784.0,66783.0,3.70477066]
[1718584283812,0.00855,66784.0,66783.0,3.70477419]
[1718584284239,0.00855,66784.0,66783.0,3.70474752]
[1718584284470,0.00855,66784.0,66783.0,3.79490752]
[1718584284690,0.00855,66784.0,66783.0,3.84490752]
[1718584284925,0.00855,66784.0,66783.0,3.85890752]
[1718584285130,0.00855,66784.0,66783.0,3.87290752]
[1718584285335,0.00855,66784.0,66783.0,3.76131611]
[1718584285554,0.00855,66784.0,66783.0,3.66131611]
[1718584285763,0.00855,66784.0,66783.0,3.77690903]
[1718584285974,0.00855,66784.0,66783.0,3.68329564]
[1718584286201,0.00855,66784.0,66783.0,3.86615025]
[1718584286376,0.00855,66784.0,66783.0,3.77253643]
[1718584286836,0.00855,66784.0,66783.0,3.68329564]
[1718584287293,0.00855,66784.0,66783.0,3.77252256]
[1718584288134,0.00855,66784.0,66783.0,3.7725]
[1718584289009,0.00855,66784.0,66783.0,5.2725]
[1718584289244,0.00855,66784.0,66783.0,5.1725]
[1718584289457,0.00855,66784.0,66783.0,5.2725]
[1718584290333,0.00855,66784.0,66783.0,5.1725]
[1718584290538,0.00855,66784.0,66783.0,5.2725]
[1718584290932,0.00855,66784.0,66783.0,5.1585]
[1718584291135,0.00855,66784.0,66783.0,5.2445]
[1718584291373,0.00855,66784.0,66783.0,5.2585]
[1718584291600,0.00855,66784.0,66783.0,4.71739154]
[1718584291828,0.00855,66784.0,66783.0,3.65527005]
[1718584292047,0.00855,66784.0,66783.0,3.66927005]
[1718584292284,0.00855,66784.0,66783.0,3.75016078]
[1718584292722,0.00855,66784.0,66783.0,4.04963778]
[1718584292934,0.00855,66784.0,66783.0,3.75016078]
[1718584293154,0.00855,66784.0,66783.0,3.68327005]
[1718584293597,0.00855,66784.0,66783.0,3.76832142]
[1718584294018,0.00855,66784.0,66783.0,3.75432142]
[1718584294244,0.00855,66784.0,66783.0,3.74032142]
[1718584294451,0.00855,66784.0,66783.0,3.75432142]
[1718584294658,0.00855,66784.0,66783.0,3.76832142]
[1718584295090,0.00855,66784.0,66783.0,4.05379842]
[1718584295319,0.0816,66796.0,66795.0,1.44526149]
[1718584295549,0.1426,66803.0,66802.0,0.48694649]
[1718584295771,0.1426,66803.0,66802.0,2.01083255]
[1718584295990,0.145795,66803.0,66802.0,2.12479219]
[1718584296202,0.1426,66803.0,66802.0,2.12479219]
[1718584297312,0.1426,66803.0,66802.0,2.13479219]
[1718584297538,0.15135,66804.0,66803.0,1.13571249]
[1718584297772,0.15135,66804.0,66803.0,2.03381455]
[1718584297982,0.15135,66804.0,66803.0,2.17735234]
[1718584298620,0.00855,66804.0,66803.0,2.47673934]
[1718584298825,0.00855,66804.0,66803.0,2.17735234]
[1718584299239,0.00855,66804.0,66803.0,2.21535234]
[1718584299665,0.00855,66804.0,66803.0,2.20535234]
[1718584299883,0.00855,66804.0,66803.0,2.25535234]
[1718584300092,0.00855,66804.0,66803.0,2.55473934]
[1718584300303,0.00855,66804.0,66803.0,2.26535234]
[1718584300512,0.00855,66804.0,66803.0,2.31335234]
[1718584300741,0.00855,66804.0,66803.0,2.61273934]
[1718584300948,0.00855,66804.0,66803.0,3.26306348]
[1718584301182,0.00855,66804.0,66803.0,3.24906348]
[1718584301381,0.00855,66804.0,66803.0,2.89370648]
[1718584301811,0.00855,66804.0,66803.0,3.29309348]
[1718584302231,0.00855,66804.0,66803.0,3.26509348]
[1718584302459,0.00855,66804.0,66803.0,3.29309348]
[1718584302669,0.00855,66804.0,66803.0,3.31109445]
[1718584303305,0.00855,66804.0,66803.0,3.29709445]
[1718584303514,0.00855,66804.0,66803.0,3.19709445]
[1718584303985,0.00855,66804.0,66803.0,3.18309445]
[1718584304198,0.00855,66804.0,66803.0,2.89770745]
[1718584304613,0.00855,66804.0,66803.0,3.15929445]
[1718584304783,0.00855,66804.0,66803.0,3.05929445]
[1718584305231,0.00855,66804.0,66803.0,3.07329445]
[1718584305650,0.00855,66804.0,66803.0,3.05929445]
[1718584305858,0.00855,66804.0,66803.0,3.04529445]
[1718584306072,0.00855,66804.0,66803.0,3.12349445]
[1718584306297,0.00855,66804.0,66803.0,3.13749445]
[1718584306505,0.00855,66804.0,66803.0,3.23749445]
[1718584306683,0.00855,66804.0,66803.0,2.83810745]
[1718584307064,0.00855,66804.0,66803.0,2.85210745]
[1718584307269,0.00855,66804.0,66803.0,3.05487243]
[1718584307481,0.00855,66804.0,66803.0,3.35425943]
[1718584307887,0.00855,66804.0,66803.0,3.41505943]
[1718584308268,0.00855,66804.0,66803.0,3.40105943]
[1718584308714,0.00855,66804.0,66803.0,3.41505943]
[1718584308886,0.00855,66804.0,66803.0,3.40105943]
[1718584309275,0.00855,66804.0,66803.0,3.39716131]
[1718584309478,0.00855,66804.0,66803.0,3.34716131]
[1718584309684,0.00855,66804.0,66803.0,3.39716131]